fUST/lending_fUST_20250907
["ID","MTS","AMOUNT","RATE_DAILY","PERIOD"]
[383959615,1757211047944,-480.0,0.00013964,2]
[383959616,1757211047955,-571.54,0.00013964,2]
[383959617,1757211047964,-480.0,0.00013964,2]
[383959618,1757211047974,-480.0,0.00013964,2]
[383959619,1757211047983,-480.0,0.00013964,2]
[383959620,1757211047993,-480.0,0.00013964,2]
[383959621,1757211048002,-480.0,0.00013964,2]
[383959622,1757211048012,-282.970492,0.00013965,2]
[383959623,1757211048021,-463.56201083,0.00013965,2]
[383959624,1757211048030,-482.03817998,0.00013965,2]
[383959625,1757211048040,-485.47216158,0.00013965,2]
[383959626,1757211048050,-483.34818183,0.00013965,2]
[383959627,1757211048059,-482.78196852,0.00013965,2]
[383959628,1757211048068,-487.1267769,0.00013965,2]
[383959629,1757211048078,-491.73054069,0.00013965,2]
[383959630,1757211048087,-483.93035529,0.00013965,2]
[383959631,1757211048096,-485.19185782,0.00013965,2]
[383959632,1757211048105,-480.0,0.00013965,2]
[383959633,1757211048114,-484.82795713,0.00013965,2]
[383959634,1757211048123,-483.86021788,0.00013965,2]
[383959635,1757211048132,-361.10049773,0.00013965,2]
[383959636,1757211048142,-480.0,0.00013965,2]
[383959637,1757211048153,-480.0,0.00013965,2]
[383959638,1757211048170,-485.11371076,0.00013965,2]
[383959639,1757211048179,-483.94925301,0.00013965,2]
[383959640,1757211048189,-482.01376486,0.00013965,2]
[383959641,1757211048199,-483.95705386,0.00013965,2]
[383959642,1757211048208,-483.1667164,0.00013965,2]
[383959643,1757211048218,-483.21809602,0.00013965,2]
[383959644,1757211048228,-480.0,0.00013965,2]
[383959645,1757211048238,-486.45765563,0.00013965,2]
[383959646,1757211048247,-885.83,0.00013965,2]
[383959647,1757211048257,-482.71460114,0.00013965,2]
[383959648,1757211048267,-481.85079765,0.00013965,2]
[383959649,1757211048277,-480.0,0.00013965,2]
[383959650,1757211048287,-484.47452921,0.00013965,2]
[383959651,1757211048296,-481.06708337,0.00013965,2]
[383959652,1757211048306,-480.0,0.00013965,2]
[383959653,1757211048398,-480.0,0.00013965,2]
[383959654,1757211048421,-480.0,0.00013965,2]
[383959655,1757211048431,-481.17378498,0.00013965,2]
[383959656,1757211048441,-481.64545807,0.00013965,2]
[383959657,1757211048451,-480.0,0.00013965,2]
[383959658,1757211048461,-483.26927368,0.00013965,2]
[383959659,1757211048470,-480.0,0.00013965,2]
[383959660,1757211048479,-500.0,0.00013965,2]
[383959661,1757211048489,-500.0,0.00013965,2]
[383959662,1757211048498,-486.39463338,0.00013965,2]
[383959663,1757211048508,-568.72664747,0.00013965,2]
[383959664,1757211048517,-480.0,0.00013965,2]
[383959665,1757211048527,-484.3839048,0.00013965,2]
[383959666,1757211048538,-480.0,0.00013965,2]
[383959667,1757211048548,-480.0,0.00013965,2]
[383959668,1757211048557,-1000.0,0.00013965,2]
[383959669,1757211048567,-1000.0,0.00013965,2]
[383959670,1757211048577,-1000.0,0.00013965,2]
[383959671,1757211048587,-1000.0,0.00013965,2]
[383959672,1757211048597,-1009.03910154,0.00013965,2]
[383959673,1757211048606,-480.0,0.00013965,2]
[383959674,1757211048617,-200.26440854,0.00013965,2]
[383959675,1757211048627,-527.9419163,0.00013965,2]
[383959676,1757211048635,-308.01273247,0.00013965,2]
[383959677,1757211048646,-485.05393548,0.00013965,2]
[383959678,1757211048656,-480.0,0.00013965,2]
[383959679,1757211048666,-489.06684382,0.00013965,2]
[383959680,1757211048675,-483.50546585,0.00013965,2]
[383959681,1757211048685,-500.0,0.00013966,2]
[383959682,1757211048695,-500.0,0.00013966,2]
[383959683,1757211048705,-500.0,0.00013969,2]
[383959684,1757211048715,-501.42399434,0.00013973,2]
[383959685,1757211048725,-500.0,0.00013973,2]
[383959686,1757211048734,-500.0,0.00013977,2]
[383959687,1757211048744,-500.0,0.00013982,2]
[383959688,1757211048753,-500.0,0.00013982,2]
[383959689,1757211048763,-480.0,0.00013983,2]
[383959690,1757211048772,-500.0,0.00013989,2]
[383959691,1757211048782,-500.0,0.00013989,2]
[383959692,1757211048792,-35130.01281435,0.0001399,2]
[383959693,1757211048802,-2347.87260389,0.00013993,2]
[383959694,1757211048812,-500.0,0.00013999,2]
[383959695,1757211048821,-152.0691238,0.00014,2]
[383959696,1757211048830,-3000.0,0.0001404,2]
[383959697,1757211048840,-2434.74389024,0.00014048,2]
[383959698,1757211048850,-500.0,0.00014082,2]
[383959699,1757211048859,-422.59188785,0.00014082,2]
[383959700,1757211048870,-10574.65704845,0.00014089,2]
[383959701,1757211048880,-2524.82941417,0.00014103,2]
[383959702,1757211048889,-511.35032693,0.00014108,2]
[383959703,1757211048903,-483.52543978,0.00014108,2]
[383959704,1757211048912,-480.0,0.00014108,2]
[383959705,1757211048922,-698.72,0.00014108,2]
[383959706,1757211048931,-1101.72,0.00014108,2]
[383959707,1757211048941,-2370.98,0.00014108,2]
[383959708,1757211048950,-754.07,0.00014108,2]
[383959709,1757211048959,-480.0,0.00014109,2]
[383959710,1757211048969,-6001.62,0.00014109,2]
[383959711,1757211048978,-481.85586238,0.00014109,2]
[383959712,1757211048989,-4720.58,0.00014109,2]
[383959713,1757211048999,-480.0,0.00014109,2]
[383959714,1757211049009,-1111.17,0.00014109,2]
[383959715,1757211049018,-480.0,0.00014109,2]
[383959716,1757211049029,-480.0,0.00014109,2]
[383959717,1757211049039,-289.87106811,0.00014109,2]
[383959718,1757211049408,-480.0,0.00013864,2]
[383959719,1757211049418,-190.12893189,0.00014109,2]
[383959720,1757211049427,-762.47,0.00014109,2]
[383959721,1757211049437,-480.0,0.00014109,2]
[383959722,1757211049446,-4150.79,0.00014109,2]
[383959723,1757211049455,-2269.5,0.00014109,2]
[383959724,1757211049464,-3072.12,0.00014109,2]
[383959725,1757211049474,-689.39,0.00014109,2]
[383959726,1757211049483,-480.0,0.00014109,2]
[383959727,1757211049493,-481.94251528,0.00014109,2]
[383959728,1757211049503,-947.36,0.00014109,2]
[383959729,1757211049512,-480.0,0.00014109,2]
[383959730,1757211049522,-1842.94,0.00014109,2]
[383959731,1757211049531,-524.25569489,0.00014109,2]
[383959732,1757211049544,-327.23430511,0.00014109,2]
[383959733,1757211049558,-528.68,0.0001411,2]
[383959734,1757211049573,-488.37614788,0.0001411,2]
[383959735,1757211049584,-510.83,0.0001411,2]
[383959736,1757211049594,-484.41726784,0.0001411,2]
[383959737,1757211049606,-485.22085682,0.0001411,2]
[383959738,1757211049616,-367.94852675,0.0001411,2]
[383959739,1757211049626,-483.48413392,0.0001411,2]
[383959740,1757211049635,-486.34572229,0.0001411,2]
[383959741,1757211049645,-486.51715261,0.0001411,2]
[383959742,1757211049654,-3.69331713,0.0001411,2]
[383959743,1757211049665,-481.35522872,0.0001411,2]
[383959744,1757211049675,-482.57859759,0.0001411,2]
[383959745,1757211049684,-486.7586702,0.0001411,2]
[383959746,1757211049694,-480.0,0.0001411,2]
[383959747,1757211049703,-483.33565762,0.0001411,2]
[383959748,1757211049712,-480.0,0.0001411,2]
[383959749,1757211049721,-43.11693594,0.0001411,2]
[383959750,1757211049733,-439.722349,0.0001411,2]
[383959751,1757211049742,-184.17122515,0.0001411,2]
[383959752,1757211049765,-480.0,0.00013864,2]
[383959753,1757211049774,-301.3194542,0.0001411,2]
[383959754,1757211049784,-482.06041166,0.0001411,2]
[383959755,1757211049793,-480.0,0.0001411,2]
[383959756,1757211049803,-480.0,0.0001411,2]
[383959757,1757211049812,-482.31011282,0.0001411,2]
[383959758,1757211049821,-484.64325898,0.0001411,2]
[383959759,1757211049833,-482.23268442,0.0001411,2]
[383959760,1757211049842,-484.91343964,0.0001411,2]
[383959761,1757211049851,-480.0,0.0001411,2]
[383959762,1757211049861,-480.0,0.0001411,2]
[383959763,1757211049872,-482.37714825,0.0001411,2]
[383959764,1757211049881,-64.64015175,0.0001411,2]
[383959770,1757211892989,163.86529505,0.000273,120]
[383959772,1757212053362,1205.16109665,0.00029046,120]
[383959773,1757212065477,154.63587587,0.00029046,120]
[383959774,1757212094852,158.65447564,0.00029046,120]
[383959776,1757212122376,1054.91457453,0.00029046,120]
[383959834,1757212232503,-878.17239486,0.00013632,2]
[383959835,1757212232515,-518.45870979,0.00013632,2]
[383959836,1757212232524,-276.25748825,0.00013699,2]
[383959841,1757212238187,-12.79514375,0.00013699,2]
[383959842,1757212238198,-684.502389,0.00013699,2]
[383959843,1757212238208,-1396.63110463,0.000137,2]
[383959844,1757212238218,-1408.4835462,0.00013723,2]
[383959845,1757212238247,-594.82644238,0.00013723,2]
[383959846,1757212238296,-102.10766028,0.00013723,2]
[383959847,1757212238308,-209.34287122,0.00013726,2]
[383959848,1757212238319,-300.0,0.00013729,2]
[383959849,1757212238330,-300.0,0.00013729,2]
[383959850,1757212238341,-300.0,0.00013729,2]
[383959851,1757212238351,-1200.0,0.0001373,2]
[383959852,1757212238362,-480.0,0.0001373,2]
[383959853,1757212238371,-640.49,0.0001373,2]
[383959854,1757212238385,-1230.26,0.0001373,2]
[383959855,1757212238394,-691.23,0.0001373,2]
[383959856,1757212238404,-2173.39,0.0001373,2]
[383959857,1757212238413,-480.0,0.0001373,2]
[383959858,1757212238426,-484.62,0.0001373,2]
[383959859,1757212238435,-500.0,0.0001373,2]
[383959860,1757212238445,-500.0,0.0001373,2]
[383959861,1757212238456,-500.0,0.0001373,2]
[383959862,1757212238467,-500.0,0.0001373,2]
[383959863,1757212238477,-500.0,0.0001373,2]
[383959864,1757212238625,-500.0,0.0001373,2]
[383959865,1757212238635,-500.0,0.0001373,2]
[383959866,1757212238646,-500.0,0.0001373,2]
[383959867,1757212238656,-465.34242385,0.0001373,2]
[383959868,1757212238666,-500.0,0.0001373,2]
[383959869,1757212238676,-500.0,0.0001373,2]
[383959870,1757212238686,-500.0,0.0001373,2]
[383959871,1757212238696,-500.0,0.0001373,2]
[383959872,1757212238705,-480.361764,0.0001373,2]
[383959873,1757212238715,-500.0,0.0001373,2]
[383959874,1757212238725,-500.0,0.0001373,2]
[383959875,1757212238735,-502.26247626,0.0001373,2]
[383959876,1757212238745,-500.0,0.0001373,2]
[383959877,1757212238755,-500.0,0.0001373,2]
[383959878,1757212238765,-394.60335949,0.0001373,2]
[383959879,1757212238775,-503.48217868,0.0001373,2]
[383959880,1757212238785,-500.0,0.0001373,2]
[383959881,1757212238795,-500.0,0.0001373,2]
[383959882,1757212238806,-500.0,0.0001373,2]
[383959883,1757212238816,-500.0,0.0001373,2]
[383959884,1757212238826,-500.0,0.0001373,2]
[383959885,1757212238837,-500.0,0.0001373,2]
[383959886,1757212238848,-500.0,0.0001373,2]
[383959887,1757212238858,-500.0,0.0001373,2]
[383959888,1757212238867,-500.0,0.0001373,2]
[383959889,1757212238878,-500.0,0.0001373,2]
[383959890,1757212238888,-500.0,0.0001373,2]
[383959891,1757212238898,-500.0,0.0001373,2]
[383959892,1757212238908,-6576.96248773,0.0001373,2]
[383959893,1757212238918,-480.0,0.00013731,2]
[383959894,1757212238927,-5501.48,0.00013731,2]
[383959895,1757212238937,-480.0,0.00013731,2]
[383959896,1757212238946,-480.0,0.00013731,2]
[383959897,1757212238956,-698.93,0.00013731,2]
[383959898,1757212238966,-660.13,0.00013731,2]
[383959899,1757212238976,-1775.0375849,0.00013731,2]
[383959900,1757212238989,-305.3324151,0.00013731,2]
[383959901,1757212238998,-848.6675849,0.00013731,2]
[383960149,1757213432522,-621.49867713,0.00013534,2]
[383960184,1757213438356,-326.77892093,0.00013534,2]
[383960185,1757213438366,-6320.07610052,0.00013534,2]
[383960186,1757213438378,-468.32528755,0.00013534,2]
[383960187,1757213438388,-451.03800277,0.00013558,2]
[383960188,1757213438409,-497.23959528,0.00013558,2]
[383960189,1757213438418,-948.27759805,0.00013582,2]
[383960190,1757213438429,-1200.0,0.00013604,2]
[383960191,1757213438438,-948.27759805,0.00013605,2]
[383960192,1757213438448,-1200.0,0.00013622,2]
[383960193,1757213438457,-209.34287122,0.00013623,2]
[383960194,1757213438468,-2105.41764886,0.00013623,2]
[383960195,1757213438477,-300.0,0.00013627,2]
[383960196,1757213438487,-300.0,0.00013627,2]
[383960197,1757213438498,-300.0,0.00013627,2]
[383960198,1757213438509,-300.0,0.00013627,2]
[383960199,1757213438519,-6576.96248773,0.00013628,2]
[383960200,1757213438530,-948.27759805,0.00013629,2]
[383960201,1757213438542,-500.0,0.0001363,2]
[383960202,1757213438552,-579.03100749,0.0001363,2]
[383960203,1757213438563,-500.0,0.0001363,2]
[383960204,1757213438572,-500.0,0.0001363,2]
[383960205,1757213438582,-500.0,0.0001363,2]
[383960206,1757213438592,-500.0,0.0001363,2]
[383960207,1757213438601,-500.0,0.0001363,2]
[383960208,1757213438610,-500.0,0.0001363,2]
[383960209,1757213438620,-500.0,0.0001363,2]
[383960210,1757213438629,-500.0,0.0001363,2]
[383960211,1757213438639,-500.0,0.0001363,2]
[383960212,1757213438650,-500.0,0.0001363,2]
[383960213,1757213438659,-500.0,0.0001363,2]
[383960214,1757213438669,-500.0,0.0001363,2]
[383960215,1757213438678,-500.0,0.0001363,2]
[383960216,1757213438688,-500.0,0.0001363,2]
[383960217,1757213438698,-500.0,0.0001363,2]
[383960218,1757213438707,-500.0,0.0001363,2]
[383960219,1757213438717,-500.0,0.0001363,2]
[383960220,1757213438726,-500.0,0.0001363,2]
[383960221,1757213438838,-500.0,0.0001363,2]
[383960222,1757213438849,-465.34242385,0.0001363,2]
[383960223,1757213438860,-500.0,0.0001363,2]
[383960224,1757213438871,-500.0,0.0001363,2]
[383960225,1757213438882,-500.0,0.0001363,2]
[383960226,1757213438891,-500.0,0.0001363,2]
[383960227,1757213438901,-600.98183633,0.0001363,2]
[383960228,1757213438911,-500.0,0.0001363,2]
[383960229,1757213438920,-371.44816337,0.0001363,2]
[383960230,1757213438930,-500.0,0.0001363,2]
[383960231,1757213438940,-500.0,0.0001363,2]
[383960232,1757213438949,-500.0,0.0001363,2]
[383960233,1757213438959,-500.0,0.0001363,2]
[383960234,1757213438969,-500.0,0.0001363,2]
[383960235,1757213438978,-500.0,0.0001363,2]
[383960236,1757213438987,-500.0,0.0001363,2]
[383960237,1757213438997,-500.0,0.0001363,2]
[383960238,1757213439006,-500.0,0.0001363,2]
[383960239,1757213439016,-238.38810674,0.0001363,2]
[383960240,1757213439025,-500.0,0.0001363,2]
[383960241,1757213439035,-500.0,0.0001363,2]
[383960242,1757213439044,-500.0,0.0001363,2]
[383960243,1757213439054,-500.0,0.0001363,2]
[383960244,1757213439064,-500.0,0.0001363,2]
[383960245,1757213439074,-500.0,0.0001363,2]
[383960246,1757213439085,-249.13660837,0.0001363,2]
[383960247,1757213439096,-500.0,0.0001363,2]
[383960248,1757213439107,-500.0,0.0001363,2]
[383960249,1757213439117,-200.0,0.0001363,2]
[383960250,1757213439127,-500.0,0.0001363,2]
[383960251,1757213439137,-500.0,0.0001363,2]
[383960252,1757213439147,-500.0,0.0001363,2]
[383960253,1757213439156,-500.0,0.0001363,2]
[383960254,1757213439167,-51.90926302,0.0001363,2]
[383960255,1757213439179,-448.09073698,0.0001363,2]
[383960256,1757213439189,-500.0,0.0001363,2]
[383960257,1757213439199,-500.0,0.0001363,2]
[383960258,1757213439208,-272.62056396,0.0001363,2]
[383960259,1757213439219,-78.78899069,0.0001363,2]
[383960260,1757213439229,-221.21100931,0.0001363,2]
[383960266,1757213441119,-278.78899069,0.0001363,2]
[383960267,1757213441131,-500.0,0.0001363,2]
[383960268,1757213441144,-436.53653113,0.0001363,2]
[383960269,1757213441156,-500.0,0.0001363,2]
[383960270,1757213441169,-500.0,0.0001363,2]
[383960271,1757213441181,-500.0,0.0001363,2]
[383960272,1757213441194,-645.49296064,0.0001363,2]
[383960273,1757213441206,-500.0,0.0001363,2]
[383960274,1757213441218,-500.0,0.0001363,2]
[383960275,1757213441231,-500.0,0.0001363,2]
[383960276,1757213441244,-500.0,0.0001363,2]
[383960277,1757213441256,-500.0,0.0001363,2]
[383960278,1757213441269,-485.7164626,0.0001363,2]
[383960279,1757213441281,-500.0,0.0001363,2]
[383960280,1757213441293,-500.0,0.0001363,2]
[383960281,1757213441305,-500.0,0.0001363,2]
[383960282,1757213441318,-500.0,0.0001363,2]
[383960283,1757213441330,-500.0,0.0001363,2]
[383960284,1757213441345,-500.0,0.0001363,2]
[383960285,1757213441357,-500.0,0.0001363,2]
[383960286,1757213441369,-500.0,0.0001363,2]
[383960287,1757213441381,-500.0,0.0001363,2]
[383960288,1757213441393,-522.01962539,0.0001363,2]
[383960289,1757213441407,-500.0,0.0001363,2]
[383960290,1757213441419,-500.0,0.0001363,2]
[383960291,1757213441433,-500.0,0.0001363,2]
[383960292,1757213441445,-500.0,0.0001363,2]
[383960293,1757213441456,-500.0,0.0001363,2]
[383960294,1757213441468,-500.0,0.0001363,2]
[383960295,1757213441480,-500.0,0.0001363,2]
[383960296,1757213441492,-500.0,0.0001363,2]
[383960297,1757213441508,-500.0,0.0001363,2]
[383960298,1757213441520,-500.0,0.0001363,2]
[383960299,1757213441533,-500.0,0.0001363,2]
[383960300,1757213441545,-500.0,0.0001363,2]
[383960301,1757213441558,-500.0,0.0001363,2]
[383960302,1757213441570,-500.0,0.0001363,2]
[383960303,1757213441583,-500.0,0.0001363,2]
[383960304,1757213441595,-500.0,0.0001363,2]
[383960305,1757213441607,-500.0,0.0001363,2]
[383960306,1757213441619,-500.0,0.0001363,2]
[383960307,1757213441634,-500.0,0.0001363,2]
[383960308,1757213441646,-316329.45811588,0.00013631,2]
[383960309,1757213441658,-1570.36114296,0.00013634,2]
[383960310,1757213441671,-2183.31810187,0.00013678,2]
[383960311,1757213441684,-480.0,0.00013698,2]
[383960312,1757213441697,-480.0,0.00013698,2]
[383960313,1757213441710,-480.0,0.00013698,2]
[383960314,1757213441722,-480.0,0.00013698,2]
[383960315,1757213441732,-480.0,0.00013698,2]
[383960316,1757213441889,-481.17838532,0.00013698,2]
[383960317,1757213441907,-480.0,0.00013698,2]
[383960318,1757213441916,-480.0,0.00013698,2]
[383960319,1757213441926,-864.06,0.00013698,2]
[383960320,1757213441936,-838.64,0.00013698,2]
[383960321,1757213441945,-481.16877158,0.00013698,2]
[383960322,1757213441954,-682.97,0.00013698,2]
[383960323,1757213441965,-480.0,0.00013698,2]
[383960324,1757213441975,-483.56418179,0.00013698,2]
[383960325,1757213441984,-480.0,0.00013698,2]
[383960326,1757213441993,-480.0,0.00013698,2]
[383960327,1757213442004,-480.0,0.00013698,2]
[383960328,1757213442014,-504.62,0.00013698,2]
[383960329,1757213442023,-151.837788,0.00013698,2]
[383960330,1757213442033,-151.391254,0.00013698,2]
[383960331,1757213442043,-484.20599666,0.00013698,2]
[383960332,1757213442053,-480.0,0.00013698,2]
[383960333,1757213442062,-480.0,0.00013698,2]
[383960334,1757213442072,-480.0,0.00013698,2]
[383960335,1757213442082,-153.125379,0.00013698,2]
[383960336,1757213442092,-480.0,0.00013698,2]
[383960337,1757213442102,-480.0,0.00013698,2]
[383960338,1757213442111,-480.0,0.00013698,2]
[383960339,1757213442121,-324.79682549,0.00013698,2]
[383960340,1757213442131,-776.5,0.00013698,2]
[383960341,1757213442140,-166.410188,0.00013698,2]
[383960342,1757213442150,-166.273196,0.00013698,2]
[383960343,1757213442159,-411.27407429,0.00013698,2]
[383960344,1757213442169,-480.0,0.00013698,2]
[383960345,1757213442178,-480.0,0.00013698,2]
[383960346,1757213442187,-480.0,0.00013698,2]
[383960347,1757213442197,-480.0,0.00013698,2]
[383960348,1757213442206,-480.0,0.00013698,2]
[383960349,1757213442215,-480.0,0.00013698,2]
[383960350,1757213442225,-480.0,0.00013698,2]
[383960351,1757213442234,-480.0,0.00013698,2]
[383960352,1757213442244,-557.771985,0.00013698,2]
[383960353,1757213442253,-480.0,0.00013698,2]
[383960354,1757213442263,-480.0,0.00013698,2]
[383960355,1757213442272,-480.0,0.00013698,2]
[383960356,1757213442282,-492.26466866,0.00013698,2]
[383960357,1757213442292,-480.0,0.00013698,2]
[383960358,1757213442301,-151.0,0.00013698,2]
[383960359,1757213442311,-480.0,0.00013698,2]
[383960360,1757213442320,-1016.0,0.00013698,2]
[383960361,1757213442330,-480.0,0.00013698,2]
[383960362,1757213442339,-480.0,0.00013698,2]
[383960363,1757213442349,-5569.11,0.00013698,2]
[383960364,1757213442360,-483.56483778,0.00013698,2]
[383960365,1757213442370,-538.84552751,0.00013698,2]
[383960366,1757213442379,-5255.96,0.00013698,2]
[383960367,1757213442390,-765.53,0.00013698,2]
[383960368,1757213442400,-480.0,0.00013698,2]
[383960369,1757213442410,-480.0,0.00013698,2]
[383960370,1757213442419,-159.229705,0.00013698,2]
[383960371,1757213442429,-480.0,0.00013698,2]
[383960372,1757213442440,-151.0,0.00013698,2]
[383960373,1757213442450,-480.0,0.00013698,2]
[383960374,1757213442460,-680.13,0.00013698,2]
[383960375,1757213442469,-154.424043,0.00013698,2]
[383960376,1757213442480,-480.0,0.00013698,2]
[383960377,1757213442490,-480.0,0.00013698,2]
[383960378,1757213442501,-1039.7,0.00013698,2]
[383960379,1757213442513,-480.0,0.00013698,2]
[383960380,1757213442522,-480.0,0.00013698,2]
[383960381,1757213442532,-1038.58,0.00013698,2]
[383960382,1757213442541,-1327.27,0.00013698,2]
[383960383,1757213442551,-480.0,0.00013698,2]
[383960384,1757213442561,-151.0,0.00013698,2]
[383960385,1757213442571,-816.2,0.00013698,2]
[383960386,1757213442581,-480.0,0.00013698,2]
[383960387,1757213442590,-480.0,0.00013698,2]
[383960388,1757213442600,-480.0,0.00013698,2]
[383960389,1757213442610,-480.0,0.00013698,2]
[383960390,1757213442619,-480.0,0.00013698,2]
[383960391,1757213442629,-480.0,0.00013698,2]
[383960392,1757213442639,-480.0,0.00013698,2]
[383960393,1757213442649,-480.0,0.00013698,2]
[383960394,1757213442659,-480.0,0.00013698,2]
[383960395,1757213442669,-718.93,0.00013698,2]
[383960396,1757213442679,-151.0,0.00013698,2]
[383960397,1757213442689,-480.0,0.00013698,2]
[383960398,1757213442699,-480.0,0.00013698,2]
[383960399,1757213442710,-254.639485,0.00013698,2]
[383960400,1757213442719,-480.0,0.00013698,2]
[383960401,1757213442729,-3830.83,0.00013698,2]
[383960402,1757213442752,-480.0,0.00013698,2]
[383960403,1757213442762,-977.93,0.00013698,2]
[383960404,1757213442774,-480.0,0.00013698,2]
[383960405,1757213442785,-2087.65,0.00013698,2]
[383960406,1757213442796,-480.0,0.00013698,2]
[383960407,1757213442806,-151.616022,0.00013698,2]
[383960408,1757213442816,-151.0,0.00013698,2]
[383960409,1757213442826,-164.34718,0.00013698,2]
[383960410,1757213442836,-480.0,0.00013698,2]
[383960411,1757213442847,-706.25,0.00013698,2]
[383960412,1757213442857,-2857.52,0.00013698,2]
[383960413,1757213442868,-480.0,0.00013698,2]
[383960414,1757213442878,-155.132331,0.00013698,2]
[383960415,1757213442889,-651.94,0.00013698,2]
[383960416,1757213442900,-480.0,0.00013698,2]
[383960417,1757213442911,-199.27248041,0.00013698,2]
[383960418,1757213442921,-480.0,0.00013698,2]
[383960419,1757213442932,-480.0,0.00013698,2]
[383960420,1757213442942,-480.0,0.00013698,2]
[383960421,1757213442952,-480.0,0.00013698,2]
[383960422,1757213442962,-647.45,0.00013698,2]
[383960423,1757213442972,-480.0,0.00013698,2]
[383960424,1757213442982,-480.0,0.00013698,2]
[383960425,1757213442992,-480.0,0.00013698,2]
[383960426,1757213443002,-480.0,0.00013698,2]
[383960427,1757213443012,-481.79325933,0.00013698,2]
[383960428,1757213443022,-710.16,0.00013698,2]
[383960429,1757213443031,-480.0,0.00013698,2]
[383960430,1757213443041,-480.0,0.00013698,2]
[383960431,1757213443051,-660.49,0.00013698,2]
[383960432,1757213443061,-888.42,0.00013698,2]
[383960433,1757213443070,-480.0,0.00013698,2]
[383960434,1757213443080,-480.0,0.00013698,2]
[383960436,1757213443089,-480.0,0.00013698,2]
[383960437,1757213443099,-480.0,0.00013698,2]
[383960438,1757213443109,-480.0,0.00013698,2]
[383960439,1757213443118,-480.0,0.00013698,2]
[383960440,1757213443129,-151.0,0.00013698,2]
[383960441,1757213443140,-480.0,0.00013698,2]
[383960442,1757213443150,-1255.11,0.00013698,2]
[383960443,1757213443160,-733.85,0.00013698,2]
[383960444,1757213443170,-711.23,0.00013698,2]
[383960445,1757213443180,-480.0,0.00013698,2]
[383960446,1757213443190,-2203.44,0.00013698,2]
[383960447,1757213443200,-820.61,0.00013698,2]
[383960448,1757213443209,-480.0,0.00013698,2]
[383960449,1757213443219,-480.0,0.00013698,2]
[383960450,1757213443229,-480.0,0.00013698,2]
[383960451,1757213443239,-1724.0,0.00013698,2]
[383960452,1757213443249,-480.0,0.00013698,2]
[383960453,1757213443258,-496.91,0.00013698,2]
[383960454,1757213443268,-151.0,0.00013698,2]
[383960455,1757213443278,-151.0,0.00013698,2]
[383960456,1757213443288,-480.0,0.00013698,2]
[383960457,1757213443298,-800.53,0.00013698,2]
[383960458,1757213443308,-181.85393199,0.00013698,2]
[383960459,1757213443318,-481.94288688,0.00013698,2]
[383960460,1757213443328,-488.26,0.00013698,2]
[383960461,1757213443338,-482.91777393,0.00013698,2]
[383960462,1757213443348,-990.22,0.00013698,2]
[383960463,1757213443358,-480.0,0.00013698,2]
[383960464,1757213443368,-482.60493228,0.00013698,2]
[383960465,1757213443378,-858.49,0.00013698,2]
[383960466,1757213443387,-2241.81,0.00013698,2]
[383960467,1757213443397,-480.0,0.00013698,2]
[383960468,1757213443406,-480.0,0.00013698,2]
[383960469,1757213443417,-936.78,0.00013698,2]